bitfinex-derivatives/quotes_ETHF0:USTF0_20251126
["timestamp","ask_amount","ask_price","bid_price","bid_amount"]
[1764166948108,1.18021,2935.1,2935.0,1.6539]
[1764166948313,1.18021,2935.1,2934.5,0.634]
[1764166948513,1.18021,2935.1,2935.0,1.6539]
[1764166949109,1.18021,2935.1,2935.0,1.65727378]
[1764166949413,0.00508243,2935.3,2935.2,1.0199]
[1764166949810,0.17038,2935.6,2935.5,1.6539]
[1764166954014,1.18018,2935.6,2935.5,1.6539]
[1764166954612,0.17038,2935.6,2935.5,1.6539]
[1764166955009,1.18018,2935.6,2935.5,1.6539]
[1764166955620,0.17038,2935.6,2935.5,1.6539]
[1764166955922,1.14058,2935.6,2935.5,1.6539]
[1764166957323,1.14059,2935.4,2935.3,0.9416]
[1764166958012,0.17039,2935.4,2935.3,0.9416]
[1764166960320,1.14059,2935.4,2935.3,0.9416]
[1764166960916,0.17039,2935.4,2935.3,0.9416]
[1764166961627,1.14061,2935.2,2935.1,0.9416]
[1764166961824,0.9702,2935.1,2935.0,1.57897378]
[1764166962923,0.9702,2935.1,2935.0,0.94497378]
[1764166963122,0.9702,2935.1,2935.0,0.00337378]
[1764166963423,0.9702,2935.1,2935.0,1.51257378]
[1764166964018,1.14061,2935.1,2935.0,0.00337378]
[1764166964328,4.36123565,2935.5,2935.4,0.9416]
[1764166964329,1.21836623,2935.5,2935.4,0.9416]
[1764166964528,0.8749,2935.6,2935.5,0.5676]
[1764166964717,0.17039,2935.5,2935.0,1.78234233]
[1764166965117,0.17039,2935.5,2935.4,0.9416]
[1764166965331,1.04526,2935.9,2935.8,0.9416]
[1764166966623,0.17036,2935.9,2935.8,0.9416]
[1764166968127,0.17037,2935.8,2935.7,0.9416]
[1764166968524,1.21836623,2936.2,2936.1,0.9416]
[1764166968730,1.04524,2936.3,2936.2,0.9416]
[1764166969028,0.17034,2936.3,2936.0,1.5092]
[1764166969218,1.04524,2936.3,2936.2,0.9416]
[1764166969422,0.17034,2936.3,2936.2,0.9416]
[1764166969625,1.04524,2936.3,2936.2,0.9416]
[1764166970930,0.8749,2936.1,2936.0,1.5092]
[1764166971130,1.04525,2936.1,2936.0,0.5676]
[1764166971335,1.04525,2936.1,2935.5,1.77896855]
[1764166971936,1.04529,2935.5,2935.4,0.9416]
[1764166972433,0.1704,2935.2,2935.1,0.9416]
[1764166973728,1.0453,2935.2,2935.1,0.9416]
[1764166973936,0.8749,2935.1,2935.0,1.51257378]
[1764166974331,0.1704,2935.2,2935.1,0.9416]
[1764166974729,1.0453,2935.2,2935.1,0.9416]
[1764166976323,1.04531,2935.1,2935.0,1.51257378]
[1764166976528,1.04531,2935.1,2935.0,0.57097378]
[1764166977032,1.04531,2935.1,2935.0,0.00337378]
[1764166978033,1.04531,2935.1,2934.8,0.005113]
[1764166978034,1.04532,2934.9,2934.8,0.005113]
[1764166978335,0.17044,2934.6,2934.1,1.21136855]
[1764166978537,1.04534,2934.6,2934.5,0.5676]
[1764166979035,1.04534,2934.6,2934.5,0.57092751]
[1764166979234,0.8749,2935.1,2935.0,1.5092]
[1764166979431,0.17041,2935.2,2935.1,0.9416]
[1764166980931,1.04531,2935.2,2935.1,0.9416]
[1764166981526,1.04531,2935.1,2935.0,0.5676]
[1764166982234,1.04531,2935.1,2935.0,1.5092]
[1764166982438,0.005113,2935.3,2935.2,0.9416]
[1764166982633,1.08818366,2936.3,2936.0,1.5092]
[1764166982833,0.17034,2936.3,2936.0,1.5092]
[1764166983340,1.04524,2936.3,2936.2,0.9416]
[1764166984341,0.17034,2936.3,2936.2,0.9416]
[1764166984946,1.04524,2936.3,2936.2,0.9416]
[1764166985534,1.04524,2936.3,2936.0,0.5676]
[1764166985938,0.82105,2936.1,2936.0,0.5676]
[1764166986131,0.82105,2936.1,2936.0,1.4101]
[1764166986835,0.82105,2936.1,2936.0,0.5676]
[1764166987041,0.17035,2936.1,2936.0,1.4101]
[1764166987545,0.17036,2936.0,2935.5,1.77896855]
[1764166987844,0.17037,2935.9,2935.5,0.5676]
[1764166988236,0.17037,2935.8,2935.5,0.5676]
[1764166988436,0.82107,2935.8,2935.7,0.8425]
[1764166989845,0.6507,2935.6,2935.5,0.5676]
[1764166990147,0.6507,2935.6,2935.5,1.4101]
[1764166990739,0.91784366,2936.2,2935.5,1.4101]
[1764166991538,0.17038,2935.6,2935.5,1.4101]
[1764166995647,0.17035,2936.2,2936.1,0.8425]
[1764166996648,0.82105,2936.2,2936.1,0.8425]
[1764166998445,0.6507,2936.1,2936.0,1.3735]
[1764166998649,0.82105,2936.1,2936.0,1.3735]
[1764166999752,0.6507,2935.6,2935.5,1.4101]
[1764166999954,0.82107,2935.8,2935.7,0.8425]
[1764167000650,0.17037,2935.8,2935.7,0.8425]
[1764167003752,0.82107,2935.8,2935.7,0.8425]
[1764167006654,0.17037,2935.8,2935.7,0.8425]
[1764167007051,0.91784366,2936.4,2936.3,0.8425]
[1764167007052,0.82104,2936.4,2936.3,0.8425]
[1764167007950,0.92053557,2936.5,2936.0,0.531]
[1764167008351,0.91784366,2936.4,2936.0,0.531]
[1764167009557,0.17035,2936.2,2936.1,0.8425]
[1764167011050,0.82105,2936.2,2936.1,0.8425]
[1764167012547,0.17035,2936.2,2936.1,0.8425]
[1764167015049,0.82105,2936.1,2936.0,0.531]
[1764167015249,0.82105,2936.1,2936.0,1.3735]
[1764167015452,0.17035,2936.1,2936.0,1.3735]
[1764167016748,0.56385,2936.1,2936.0,1.3735]
[1764167017756,0.17035,2936.1,2936.0,1.3735]
[1764167018251,0.91784366,2936.4,2936.2,0.7933]
[1764167018456,0.00269191,2936.5,2936.4,0.7933]
[1764167025160,0.91784366,2937.1,2937.0,1.2739]
[1764167025361,0.91784366,2937.4,2937.3,0.7933]
[1764167025565,1.48431366,2937.5,2937.4,0.7933]
[1764167026167,1.48850358,2937.5,2937.4,0.79698735]
[1764167027365,0.57065992,2937.5,2937.4,0.79698735]
[1764167027867,0.17029,2937.1,2937.0,1.2739]
[1764167028067,0.56649,2937.1,2937.0,1.2739]
[1764167028762,0.17029,2937.1,2937.0,1.2739]
[1764167029066,0.17029,2937.1,2937.0,1.27651707]
[1764167029660,0.56649,2937.1,2937.0,1.27651707]
[1764167030167,0.17029,2937.1,2937.0,1.27651707]
[1764167030365,0.00418992,2937.5,2937.4,0.7933]
[1764167030572,2.43823359,2938.2,2937.4,0.7933]
[1764167030579,0.17022,2938.4,2938.3,0.7933]
[1764167031173,0.17022,2938.4,2937.6,1.21096493]
[1764167031174,0.7862,2938.1,2937.6,1.21096493]
[1764167031368,0.3999,2938.0,2937.5,0.4806]
[1764167031571,0.40360491,2938.0,2937.5,0.4806]
[1764167031962,0.00370491,2938.0,2937.9,0.7933]
[1764167032165,0.00370491,2938.0,2937.5,0.4806]
[1764167032166,0.9564,2938.7,2938.6,0.7933]
[1764167033076,0.96069735,2938.7,2938.6,0.7933]
[1764167033374,1.36001,2938.5,2938.4,0.005113]
[1764167034871,0.4036,2938.5,2937.5,0.4806]
[1764167035875,0.005113,2938.3,2937.7,0.005113]
[1764167036383,0.17024,2938.1,2937.7,0.005113]
[1764167037275,0.7862,2937.8,2937.7,0.798413]
[1764167037471,0.95645,2937.8,2937.7,0.005113]
[1764167038275,0.005113,2938.3,2937.7,0.005113]
[1764167038477,0.005113,2938.3,2938.2,0.7933]
[1764167038677,0.17022,2938.5,2938.4,0.7933]
[1764167038875,0.95642,2938.5,2938.4,0.7933]
[1764167039273,0.17022,2938.4,2938.0,0.4806]
[1764167039482,0.17022,2938.3,2938.2,0.7933]
[1764167039681,0.95642,2938.3,2938.2,0.7933]
[1764167040486,0.7862,2938.1,2938.0,0.4806]
[1764167040689,0.95644,2938.1,2938.0,0.4806]
[1764167041087,0.17025,2937.9,2937.7,0.005113]
[1764167041279,0.95645,2937.8,2937.7,0.798413]
[1764167041875,0.95645,2937.8,2937.7,0.005113]
[1764167042280,0.95645,2937.8,2937.7,0.798413]
[1764167042787,0.95645,2937.8,2937.7,0.005113]
[1764167043990,0.17025,2937.8,2937.7,0.798413]
[1764167044190,1.14125,2937.8,2937.7,0.798413]
[1764167044389,0.17025,2937.8,2937.7,0.798413]
[1764167045290,0.95645,2937.8,2937.7,0.798413]
[1764167049202,0.95645,2937.8,2937.7,0.005113]
[1764167049389,4.94445,2937.8,2937.7,0.005113]
[1764167050092,0.95645,2937.8,2937.7,0.766613]
[1764167050298,5.46245,2937.8,2937.7,0.766613]
[1764167050690,4.77125,2937.8,2937.7,0.766613]
[1764167050892,5.53215,2937.8,2937.7,0.005113]
[1764167055301,6.75051623,2937.8,2937.7,0.005113]
[1764167055489,0.93117,2937.5,2937.4,0.33080339]
[1764167055693,0.93119,2937.1,2936.5,1.69156493]
[1764167055890,0.93119,2937.1,2936.5,0.4806]
[1764167056494,0.93119,2937.1,2937.0,0.00261707]
[1764167057100,0.93119,2937.1,2937.0,0.44031707]
[1764167057500,0.17029,2937.1,2937.0,1.20181707]
[1764167057701,2.61829,2937.1,2937.0,1.20181707]
[1764167059500,2.15929,2937.1,2937.0,1.20181707]
[1764167059700,2.92019,2937.1,2937.0,1.20181707]
[1764167061696,2.97619,2937.1,2937.0,1.20181707]
[1764167063206,2.97619,2937.1,2937.0,0.00261707]
[1764167064103,0.93119,2937.1,2937.0,0.00261707]
[1764167064403,3.58829,2937.1,2937.0,1.20181707]
[1764167064804,4.34919,2937.1,2937.0,1.20181707]
[1764167068709,0.93119,2937.1,2937.0,1.20181707]
[1764167068901,6.35319,2937.1,2937.0,1.20181707]
[1764167070612,6.35319,2937.1,2937.0,0.00261707]
[1764167071502,7.88052337,2937.1,2937.0,0.00261707]
[1764167073009,2.46405678,2937.1,2937.0,0.00261707]
[1764167073209,7.88605678,2937.1,2937.0,0.00261707]
[1764167074114,6.35319,2937.1,2937.0,0.00261707]
[1764167074711,7.89409654,2937.1,2937.0,0.00261707]
[1764167074913,6.35319,2937.1,2937.0,0.00261707]
[1764167076222,0.9312,2936.9,2936.8,0.005113]
[1764167076911,0.9312,2936.9,2936.8,1.78532192]
[1764167077117,6.3532,2936.9,2936.8,2.53416807]
[1764167077318,6.3532,2936.9,2936.8,2.53834623]
[1764167077708,6.3532,2936.9,2936.8,1.82574623]
[1764167078005,6.3532,2936.9,2936.8,2.53834623]
[1764167078317,6.1778,2936.9,2936.8,2.53834623]
[1764167078610,6.1778,2936.9,2936.8,1.76480452]
[1764167079613,6.1778,2936.9,2936.8,1.81429021]
[1764167079926,6.1778,2936.9,2936.8,0.00929116]
[1764167080124,7.71099386,2936.9,2936.8,1.81429021]
[1764167080518,9.45211187,2936.9,2936.8,1.81429021]
[1764167080721,9.45211187,2936.9,2936.8,1.79729946]
[1764167081126,9.45211187,2936.9,2936.8,2.50989946]
[1764167081127,1.70349386,2936.9,2936.8,2.50989946]
[1764167081318,7.12549386,2936.9,2936.8,2.50989946]
[1764167081628,7.71099386,2936.9,2936.8,2.50989946]
[1764167081820,7.71099386,2936.9,2936.8,0.72189116]
[1764167082524,7.12549386,2936.9,2936.8,2.53146619]
[1764167082918,7.12549386,2936.9,2936.8,2.49727595]
[1764167083119,2.28899386,2936.9,2936.8,2.49727595]
[1764167083319,7.71099386,2936.9,2936.8,2.49727595]
[1764167083619,7.71099386,2936.9,2936.8,1.78467595]
[1764167084028,7.71099386,2936.9,2936.8,2.49727595]
[1764167085525,7.71099386,2936.9,2936.8,2.51668736]
[1764167085724,2.28899386,2936.9,2936.8,2.51668736]
[1764167086126,7.70999386,2936.9,2936.8,2.51668736]
[1764167086325,7.70999386,2936.9,2936.8,0.72189116]
[1764167086526,7.70999386,2936.9,2936.8,2.53561356]
[1764167087630,7.70999386,2936.9,2936.8,0.72189116]
[1764167087828,7.70999386,2936.9,2936.8,0.00929116]
[1764167089023,7.70999386,2936.9,2936.8,1.81228728]
[1764167089736,7.70999386,2936.9,2936.8,0.72189116]
[1764167089936,7.70999386,2936.9,2936.8,0.00929116]
[1764167090535,8.62862966,2936.9,2936.8,0.00929116]
[1764167090735,8.62862966,2936.9,2936.8,1.82128396]
[1764167090939,8.62862966,2936.9,2936.8,0.00929116]
[1764167091233,8.62862966,2936.9,2936.8,1.78257705]
[1764167092343,10.6694781,2936.9,2936.8,0.00929116]
[1764167092836,10.6694781,2936.9,2936.8,1.77549941]
[1764167093429,10.6694781,2936.9,2936.8,1.82307024]
[1764167093737,10.6694781,2936.9,2936.8,2.53567024]
[1764167094636,10.6694781,2936.9,2936.8,0.72189116]
[1764167095039,10.6694781,2936.9,2936.8,2.48484195]
[1764167095237,10.11876254,2936.9,2936.8,2.48484195]
[1764167095438,10.70426254,2936.9,2936.8,2.48484195]
[1764167095833,10.66165825,2936.9,2936.8,2.51176854]
[1764167096134,10.66165825,2936.9,2936.8,1.79916854]
[1764167097541,10.66165825,2936.9,2936.8,1.80507839]
[1764167098735,10.66165825,2936.9,2936.8,0.00929116]
[1764167100340,1.69567401,2936.9,2936.8,0.72189116]
[1764167100643,1.72277761,2936.9,2936.8,2.47965448]
[1764167100832,2.30827761,2936.9,2936.8,2.47965448]
[1764167101038,0.7558,2936.9,2936.8,0.72189116]
[1764167101242,0.1703,2936.9,2936.8,0.72189116]
[1764167101438,1.72263742,2936.9,2936.8,2.47949575]
[1764167101640,5.83563742,2936.9,2936.8,2.47949575]
[1764167101840,4.2833,2936.9,2936.8,0.72189116]
[1764167102140,5.5903,2936.9,2936.8,0.72189116]
[1764167102647,7.1225379,2936.9,2936.8,2.48041817]
[1764167103143,7.7080379,2936.9,2936.8,2.48041817]
[1764167103644,7.1225379,2936.9,2936.8,2.48041817]
[1764167103834,6.1758,2936.9,2936.8,0.72189116]
[1764167104037,7.91691801,2936.9,2936.8,0.72189116]
[1764167104246,2.49691801,2936.9,2936.8,0.72189116]
[1764167104437,9.45453353,2936.9,2936.8,2.49120093]
[1764167104638,7.12791552,2936.9,2936.8,2.49120093]
[1764167104843,7.12791552,2936.9,2936.8,0.72189116]
[1764167104844,6.1758,2936.9,2936.8,0.72189116]
[1764167105045,7.75123716,2936.9,2936.8,2.52443251]
[1764167105743,7.16573716,2936.9,2936.8,2.52443251]
[1764167105941,5.5903,2936.9,2936.8,0.72189116]
[1764167106245,7.13702586,2936.9,2936.8,2.48414195]
[1764167106542,7.51682586,2936.9,2936.8,2.48414195]
[1764167106946,5.9701,2936.9,2936.8,0.72189116]
[1764167107148,7.51881779,2936.9,2936.8,2.52688283]
[1764167107748,5.9701,2936.9,2936.8,0.72189116]
[1764167108158,7.13901779,2936.9,2936.8,2.52688283]
[1764167108449,7.15517279,2936.9,2936.8,2.53328118]
[1764167109550,7.53497279,2936.9,2936.8,2.53328118]
[1764167109749,7.71121801,2936.9,2936.8,0.72189116]
[1764167109953,7.71021801,2936.9,2936.8,0.72189116]
[1764167110253,7.71021801,2936.9,2936.8,0.00929116]
[1764167110455,9.28487746,2936.9,2936.8,0.62609116]
[1764167110652,9.28487746,2936.9,2936.8,2.4326856]
[1764167110854,7.71021801,2936.9,2936.8,0.62609116]
[1764167111656,5.5893,2936.9,2936.8,0.62609116]
[1764167111850,7.11545922,2936.9,2936.8,2.41897469]
[1764167112657,5.9691,2936.9,2936.8,0.62609116]
[1764167113157,7.5231663,2936.9,2936.8,2.4110953]
[1764167113750,5.9691,2936.9,2936.8,0.00929116]
[1764167114156,7.51331004,2936.9,2936.8,0.00929116]
[1764167114357,7.53964847,2936.9,2936.8,0.00929116]
[1764167115357,0.5501,2936.9,2936.8,0.62609116]
[1764167115557,7.4982943,2936.9,2936.8,2.44438319]
[1764167116359,5.9691,2936.9,2936.8,0.62609116]
[1764167116561,7.52021108,2936.9,2936.8,1.76388454]
[1764167116761,5.9691,2936.9,2936.8,0.00929116]
[1764167116962,0.5501,2936.9,2936.8,0.62609116]
[1764167117160,0.1703,2936.9,2936.8,0.62609116]
[1764167117359,4.4033,2936.9,2936.8,0.62609116]
[1764167117558,0.1703,2936.9,2936.8,0.62609116]
[1764167117863,4.3001,2936.9,2936.8,0.62609116]
[1764167120272,0.1703,2936.9,2936.8,0.62609116]
[1764167120475,5.9681,2936.9,2936.8,0.62609116]
[1764167121171,0.1703,2936.9,2936.8,0.62609116]
[1764167121466,4.3261,2936.9,2936.8,0.62609116]
[1764167121669,4.3261,2936.9,2936.8,0.00929116]
[1764167122266,6.06721801,2936.9,2936.8,0.00929116]
[1764167123471,4.3261,2936.9,2936.8,0.00929116]
[1764167123677,0.5501,2936.9,2936.8,0.62609116]
[1764167125674,0.5501,2936.9,2936.8,0.00929116]
[1764167130479,1.46914629,2936.9,2936.8,0.00929116]
[1764167131578,1.76846623,2936.9,2936.8,0.00929116]
[1764167131778,7.19371546,2936.9,2936.8,0.00929116]
[1764167132574,0.5501,2936.9,2936.8,0.00929116]
[1764167132774,3.0531,2936.9,2936.8,0.00929116]
[1764167134069,0.54083,2936.5,2936.4,1.08373482]
[1764167134274,0.3705,2936.4,2936.0,0.4806]
[1764167134474,0.17035,2936.2,2936.1,0.6168]
[1764167135180,0.17467503,2936.2,2936.1,0.62074638]
[1764167135481,0.54517503,2936.2,2936.1,0.00394638]
[1764167137182,0.35806,2936.0,2935.9,0.005113]
[1764167138185,0.35806,2936.0,2935.9,0.00903635]
[1764167145794,5.50806,2936.0,2935.9,0.00903635]
[1764167148990,7.24963502,2936.0,2935.9,0.00903635]
[1764167150697,6.89157502,2936.0,2935.0,2.25916586]
[1764167150900,0.17039,2935.5,2935.4,0.5746]
[1764167151493,0.35809,2935.5,2935.4,0.5746]
[1764167151791,0.35809,2935.5,2935.4,0.57886343]
[1764167152887,0.17039,2935.5,2935.4,0.57886343]
[1764167154898,0.35809,2935.5,2935.4,0.57886343]
[1764167155100,0.35809,2935.5,2935.4,0.00426343]
[1764167155791,0.35809,2935.5,2935.4,0.57886343]
[1764167157900,0.35809,2935.5,2935.4,0.00426343]
[1764167161400,0.3581,2935.3,2935.2,0.005113]
[1764167161600,2.09967502,2935.3,2935.2,0.005113]
[1764167162600,2.09967502,2935.3,2935.2,0.00900179]
[1764167164307,3.4061,2935.3,2935.2,0.00900179]
[1764167164995,0.1704,2935.3,2935.2,0.58360179]
[1764167179517,0.1888,2935.3,2935.2,0.58360179]
[1764167180212,0.1704,2935.3,2935.2,0.58360179]
[1764167182521,0.1704,2935.3,2935.2,1.80312608]
[1764167186512,0.92456242,2935.7,2935.2,1.80312608]
[1764167186716,0.005113,2935.7,2935.6,0.5214]
[1764167186914,0.175483,2935.7,2935.6,0.5214]
[1764167191729,0.193883,2935.7,2935.6,0.5214]
[1764167196632,1.93593397,2935.7,2935.6,0.5214]
[1764167198723,7.34893397,2935.7,2935.6,0.5214]
[1764167199130,8.26838339,2935.7,2935.6,0.5214]
[1764167200032,7.34893397,2935.7,2935.6,0.5214]
[1764167200228,8.26838339,2935.7,2935.6,0.5214]
[1764167200527,2.85538339,2935.7,2935.6,0.5214]
[1764167200732,1.93593397,2935.7,2935.6,0.5214]
[1764167201230,2.85538339,2935.7,2935.6,0.5214]
[1764167205140,0.17038,2935.6,2935.5,0.7946]
[1764167205433,0.17038,2935.6,2935.5,0.3]
[1764167205637,1.08982942,2935.6,2935.5,0.3]
[1764167206025,1.08982942,2935.6,2935.1,1.21952429]
[1764167206026,0.1704,2935.2,2935.1,1.21952429]
[1764167206226,0.17043,2934.8,2934.7,0.4946]
[1764167206431,1.83906941,2935.3,2935.2,0.4946]
[1764167206633,1.08972895,2935.4,2935.3,0.4946]
[1764167206937,0.92445195,2935.7,2935.6,0.4946]
[1764167207131,0.005113,2935.7,2935.6,0.49843505]
[1764167212343,0.175483,2935.7,2935.6,0.49843505]
[1764167214244,0.17467503,2936.2,2936.1,0.4946]
[1764167214638,1.83906941,2936.5,2936.4,0.4946]
[1764167214833,2.00938941,2936.7,2936.6,0.4946]
[1764167215032,0.17032,2936.7,2936.6,0.4946]
[1764167215448,1.91237097,2936.7,2936.6,0.4946]
[1764167215647,1.9149948,2936.7,2936.6,0.4946]
[1764167218248,0.17294383,2936.7,2936.6,0.4946]
[1764167218744,1.9149948,2936.7,2936.6,0.4946]
[1764167220855,0.17294383,2936.7,2936.6,0.4946]
[1764167221150,0.17032,2936.6,2936.5,0.2683]
[1764167221351,1.91237097,2936.6,2936.5,0.7629]
[1764167223242,0.17032,2936.6,2936.5,0.2683]
[1764167223441,0.17032,2936.6,2936.5,0.7629]
[1764167226545,1.83906941,2937.6,2937.5,0.7142]
[1764167226749,1.42184004,2937.8,2937.7,0.4462]
[1764167226949,1.74205097,2939.4,2938.5,0.268]
[1764167226950,1.74205097,2938.7,2938.5,0.268]
[1764167227249,1.91225097,2938.7,2938.5,0.268]
[1764167227443,0.17021,2938.6,2938.5,0.268]
[1764167227753,0.17342542,2938.6,2938.5,0.27198188]
[1764167229048,0.17342542,2938.6,2938.5,0.71818188]
[1764167232857,1.91547639,2938.6,2938.5,0.27198188]
[1764167233748,0.17342542,2938.6,2938.5,0.71818188]
[1764167235560,0.17016,2939.5,2939.4,0.4462]
[1764167235750,1.91221097,2939.5,2939.4,0.4462]
[1764167235949,1.91221097,2939.5,2939.0,0.268]
[1764167236160,1.74205097,2939.3,2939.2,0.4462]
[1764167236359,0.17016,2939.5,2939.4,0.4462]
[1764167236556,0.17308779,2939.5,2939.4,0.4462]
[1764167237760,0.17016,2939.4,2939.0,0.268]
[1764167237952,1.74205097,2939.2,2939.0,0.268]
[1764167238455,0.17017,2939.3,2939.2,0.4462]
[1764167239956,0.00292779,2939.5,2939.4,0.4462]
[1764167240459,0.12642779,2939.5,2939.4,0.4462]
[1764167241259,0.17017,2939.3,2939.0,0.268]
[1764167241454,0.17017,2939.3,2939.2,0.4462]
[1764167242954,1.91222097,2939.3,2939.2,0.4462]
[1764167243354,0.1235,2939.1,2939.0,0.7142]
[1764167244359,0.29368,2939.1,2939.0,0.7142]
[1764167245758,0.29368,2939.1,2939.0,0.268]
[1764167247465,0.29368,2939.1,2939.0,0.7142]
[1764167247968,0.29368,2939.1,2939.0,0.268]
[1764167248356,0.29368,2939.1,2939.0,0.7142]
[1764167248566,0.17018,2939.1,2939.0,0.7142]
[1764167248965,0.29368,2939.1,2939.0,0.7142]
[1764167249268,0.1235,2938.6,2938.5,0.27198188]
[1764167249469,0.1235,2938.6,2938.5,0.71818188]
[1764167249657,1.86555097,2938.6,2938.5,0.71818188]
[1764167249854,2.03576097,2938.6,2938.5,0.71818188]
[1764167250666,0.29371,2938.6,2938.5,0.71818188]
[1764167250862,2.03576097,2938.6,2938.5,0.71818188]
[1764167252763,0.17021,2938.6,2938.5,0.71818188]
[1764167254768,0.29371,2938.6,2938.5,0.71818188]
[1764167254977,0.29371,2938.6,2938.5,0.27198188]
[1764167255867,1.21126766,2939.1,2939.0,0.7327]
[1764167256072,0.17017,2939.2,2939.1,0.4537]
[1764167256274,1.38143766,2939.2,2939.1,0.4537]
[1764167256575,0.17017,2939.2,2939.1,0.4537]
[1764167258472,0.29367,2939.2,2939.1,0.4537]
[1764167259678,0.29368,2939.1,2939.0,0.279]
[1764167259977,2.03151496,2939.1,2939.0,0.7327]
[1764167260172,1.21126766,2939.3,2939.0,0.7327]
[1764167260372,1.21419545,2939.5,2939.4,0.4537]
[1764167260583,0.00292779,2939.5,2939.4,0.4537]
[1764167265180,2.779e-05,2939.5,2939.4,0.4537]
[1764167270382,0.11008,2940.0,2939.9,0.4537]
[1764167270592,0.17012,2940.2,2940.1,0.4537]
[1764167271480,0.17320136,2940.2,2940.1,0.4537]
[1764167271883,1.21126766,2940.6,2940.5,0.7327]
[1764167272387,1.21126766,2940.6,2940.5,0.279]
[1764167272388,0.30159,2940.6,2940.5,0.279]
[1764167272884,0.30525774,2940.6,2940.5,0.7327]
[1764167274294,0.1701,2940.5,2940.0,0.279]
[1764167274782,0.00366774,2940.6,2940.0,0.279]
[1764167275182,0.30525774,2940.6,2940.5,0.279]
[1764167276681,0.30525774,2940.6,2939.9,0.00510395]
[1764167276682,0.1315,2940.0,2939.9,0.00510395]
[1764167276988,0.17013,2940.0,2939.9,0.45880395]
[1764167277191,1.08718439,2940.6,2940.4,0.4537]
[1764167277384,1.21868439,2940.6,2940.5,0.279]
[1764167278486,1.08718439,2940.6,2940.5,0.7327]
[1764167278687,0.1701,2940.5,2940.0,0.279]
[1764167278994,0.17011,2940.3,2940.0,0.279]
[1764167279188,0.30161,2940.3,2940.2,0.4537]
[1764167280394,0.17011,2940.3,2940.2,0.4537]
[1764167280888,0.30161,2940.2,2940.1,0.4537]
[1764167281193,0.17011,2940.2,2940.1,0.4537]
[1764167282588,0.30161,2940.2,2940.1,0.4537]
[1764167283180,0.30162,2940.1,2940.0,0.279]
[1764167283386,0.30162,2940.1,2940.0,0.7327]
[1764167284296,0.30162,2940.1,2940.0,0.279]
[1764167285290,0.30162,2940.1,2940.0,0.7327]
[1764167286293,0.17012,2940.1,2940.0,0.7327]
[1764167286689,0.30042,2940.1,2940.0,0.7327]
[1764167286985,0.17012,2940.1,2940.0,0.7327]
[1764167287188,0.30042,2940.1,2940.0,0.7327]
[1764167287590,0.30042,2940.1,2939.1,1.20343048]
[1764167287591,0.1252,2939.2,2939.1,1.20343048]
[1764167287786,0.91585697,2939.5,2939.4,0.4601]
[1764167287993,1.08598697,2939.9,2939.8,0.4601]
[1764167288297,1.21118697,2939.9,2939.8,0.4601]
[1764167288493,0.1252,2939.6,2939.5,0.7483]
[1764167288691,0.91585697,2939.9,2939.5,0.7483]
[1764167288891,1.21118697,2939.9,2939.8,0.4601]
[1764167289303,0.17015,2939.6,2939.5,0.7483]
[1764167289503,0.29536,2939.4,2939.3,0.46520395]
[1764167289801,0.29536,2939.4,2939.3,0.00510395]
[1764167291602,0.17018,2939.1,2939.0,0.7391]
[1764167292202,0.29538,2939.1,2939.0,0.7391]
[1764167294895,0.29538,2939.1,2939.0,0.279]
[1764167295403,0.29538,2939.1,2939.0,0.7391]
[1764167295597,0.17018,2939.1,2939.0,0.7391]
[1764167304208,0.91613249,2939.6,2939.5,0.7483]
[1764167305203,0.2954,2939.6,2939.5,0.2882]
[1764167305404,0.46555,2939.6,2939.5,0.2882]
[1764167305607,0.46555,2939.6,2939.5,0.7483]
[1764167306010,0.46555,2939.6,2939.5,0.2882]
[1764167306210,0.17018,2939.1,2939.0,0.7391]
[1764167308312,0.46558,2939.1,2939.0,0.7391]
[1764167309615,0.17018,2939.1,2939.0,0.7391]
[1764167312013,4.85082815,2939.9,2939.7,0.4601]
[1764167312014,0.17014,2939.8,2939.7,0.4601]
[1764167312214,1.83760766,2939.8,2939.7,0.4601]
[1764167312409,0.62634,2939.8,2939.7,0.4601]
[1764167312717,0.4562,2939.6,2939.5,0.7483]
[1764167314518,0.62635,2939.6,2939.5,0.7483]
[1764167314722,0.62635,2939.6,2939.5,0.4601]
[1764167318120,0.17015,2939.6,2939.5,0.7392]
[1764167318420,0.63635,2939.6,2939.5,0.7392]
[1764167318609,2.37382311,2939.6,2939.5,0.7392]
[1764167319617,2.37382311,2939.6,2939.5,0.4601]
[1764167321227,0.63636,2939.4,2939.3,0.4894]
[1764167321425,2.37383311,2939.4,2939.3,0.4894]
[1764167322813,0.63637,2939.2,2939.1,0.4894]
[1764167323015,2.37384311,2939.2,2939.1,0.4894]
[1764167327728,0.63638,2939.1,2939.0,0.4894]
[1764167328728,0.63638,2939.1,2939.0,0.7685]
[1764167329221,0.17018,2939.1,2939.0,0.7685]
[1764167329631,0.63638,2939.1,2939.0,0.7685]
[1764167331530,0.17018,2939.1,2939.0,0.7685]
[1764167340327,0.63638,2939.1,2939.0,0.4894]
[1764167340528,0.63639,2938.9,2938.8,0.49450395]
[1764167340838,2.37386311,2938.9,2938.8,0.49450395]
[1764167341035,2.37386311,2938.9,2938.8,0.00510395]
[1764167345240,2.37386311,2938.9,2938.8,0.49450395]
[1764167346234,2.37386311,2938.9,2938.8,0.00510395]
[1764167347229,0.62241,2938.6,2938.5,0.00398188]
[1764167347440,2.35988311,2938.6,2938.5,0.00398188]
[1764167354752,2.35988311,2938.6,2938.5,0.72758188]
[1764167355138,2.35988311,2938.6,2938.5,0.00398188]
[1764167355543,2.35988311,2938.6,2938.5,0.45568188]
[1764167356049,2.35988311,2938.6,2938.5,0.72758188]
[1764167358144,0.62241,2938.6,2938.5,0.72758188]
[1764167358742,2.35988311,2938.6,2938.5,0.45568188]
[1764167359353,2.35988311,2938.6,2938.5,0.00398188]
[1764167359768,0.62245,2937.9,2937.7,1.21160481]
[1764167360053,0.62246,2937.7,2937.6,0.4517]
[1764167360957,0.6257509,2937.7,2937.6,0.45465038]
[1764167362059,0.6257509,2937.7,2937.6,0.00295038]